fUSD/lending_fUSD_20240618
["ID","MTS","AMOUNT","RATE_DAILY","PERIOD"]
[329797369,1718677854569,-527.7599449,0.00022191,3]
[329797370,1718677854582,-500.0,0.00022191,3]
[329797371,1718677854594,-500.0,0.00022191,3]
[329797372,1718677854607,-507.19327918,0.00022191,3]
[329797373,1718677854619,-531.09194307,0.00022191,3]
[329797374,1718677854631,-500.0,0.00022191,3]
[329797375,1718677854643,-500.0,0.00022191,3]
[329797376,1718677854655,-500.0,0.00022191,3]
[329797377,1718677854667,-638.00674422,0.00022191,3]
[329797378,1718677854684,-500.0,0.00022191,3]
[329797379,1718677854700,-516.68071571,0.00022191,3]
[329797380,1718677854714,-578.26633626,0.00022191,3]
[329797381,1718677854728,-500.0,0.00022191,3]
[329797382,1718677854740,-500.0,0.00022191,3]
[329797383,1718677854752,-500.0,0.00022191,3]
[329797384,1718677854765,-500.0,0.00022191,3]
[329797385,1718677854778,-500.0,0.00022191,3]
[329797386,1718677854792,-532.67368195,0.00022191,3]
[329797387,1718677854804,-500.0,0.00022191,3]
[329797388,1718677854816,-530.87056144,0.00022191,3]
[329797389,1718677854828,-500.0,0.00022191,3]
[329797390,1718677854840,-500.0,0.00022191,3]
[329797391,1718677854852,-500.0,0.00022191,3]
[329797392,1718677854864,-507.5590998,0.00022191,3]
[329797393,1718677854876,-500.0,0.00022191,3]
[329797394,1718677854888,-510.45662087,0.00022191,3]
[329797395,1718677854901,-500.0,0.00022191,3]
[329797396,1718677854914,-500.0,0.00022191,3]
[329797397,1718677854926,-500.0,0.00022191,3]
[329797398,1718677854944,-500.0,0.00022191,3]
[329797399,1718677854956,-500.0,0.00022191,3]
[329797400,1718677854968,-499.68469629,0.00022191,3]
[329797401,1718677854981,-499.76904922,0.00022191,3]
[329797402,1718677854993,-500.0,0.00022191,3]
[329797403,1718677855006,-500.0,0.00022191,3]
[329797404,1718677855020,-513.80149961,0.00022191,3]
[329797405,1718677855033,-512.8272459,0.00022191,3]
[329797406,1718677855044,-201.96325773,0.00022191,3]
[329797407,1718677855054,-500.0,0.00022191,3]
[329797408,1718677855063,-500.0,0.00022191,3]
[329797409,1718677855073,-500.0,0.00022191,3]
[329797410,1718677855083,-500.0,0.00022191,3]
[329797411,1718677855092,-609.77087679,0.00022191,3]
[329797412,1718677855102,-500.0,0.00022191,3]
[329797413,1718677855112,-500.0,0.00022191,3]
[329797414,1718677855121,-500.0,0.00022191,3]
[329797415,1718677855131,-509.06255742,0.00022191,3]
[329797416,1718677855141,-514.13224252,0.00022191,3]
[329797417,1718677855152,-508.77923378,0.00022191,3]
[329797418,1718677855162,-523.35374959,0.00022191,3]
[329797419,1718677855173,-500.98992541,0.00022191,3]
[329797420,1718677855187,-500.0,0.00022191,3]
[329797421,1718677855196,-500.0,0.00022191,3]
[329797422,1718677855206,-500.0,0.00022191,3]
[329797423,1718677855215,-520.49759779,0.00022191,3]
[329797424,1718677855225,-514.40956478,0.00022191,3]
[329797425,1718677855234,-509.42591842,0.00022191,3]
[329797426,1718677855244,-500.0,0.00022191,3]
[329797427,1718677855254,-506.90394318,0.00022191,3]
[329797428,1718677855264,-545.87734592,0.00022191,3]
[329797429,1718677855274,-500.0,0.00022191,3]
[329797430,1718677855284,-500.0,0.00022191,3]
[329797431,1718677855294,-500.0,0.00022191,3]
[329797432,1718677855303,-507.61121456,0.00022191,3]
[329797433,1718677855313,-505.82932211,0.00022191,3]
[329797434,1718677855323,-592.84,0.00022191,3]
[329797435,1718677855332,-500.0,0.00022191,3]
[329797436,1718677855751,-500.0,0.00022191,3]
[329797437,1718677855773,-502.09206269,0.00022191,3]
[329797438,1718677855787,-527.73878296,0.00022191,3]
[329797439,1718677855799,-500.0,0.00022191,3]
[329797440,1718677855809,-500.0,0.00022191,3]
[329797441,1718677855819,-500.0,0.00022191,3]
[329797442,1718677855828,-500.0,0.00022191,3]
[329797443,1718677855839,-509.08931541,0.00022191,3]
[329797444,1718677855849,-993.31,0.00022191,3]
[329797445,1718677855859,-535.5800674,0.00022191,3]
[329797446,1718677855869,-500.0,0.00022191,3]
[329797447,1718677855879,-500.0,0.00022191,3]
[329797448,1718677855889,-623.42353656,0.00022191,3]
[329797449,1718677855899,-503.99097156,0.00022191,3]
[329797450,1718677855910,-500.0,0.00022191,3]
[329797451,1718677855920,-500.0,0.00022191,3]
[329797452,1718677855934,-500.0,0.00022191,3]
[329797453,1718677855944,-509.55844746,0.00022191,3]
[329797454,1718677855953,-500.0,0.00022191,3]
[329797455,1718677855963,-500.0,0.00022191,3]
[329797456,1718677855973,-1032.31,0.00022191,3]
[329797457,1718677855982,-500.0,0.00022191,3]
[329797458,1718677855992,-500.0,0.00022191,3]
[329797459,1718677856002,-500.0,0.00022191,3]
[329797460,1718677856012,-508.00707513,0.00022191,3]
[329797461,1718677856021,-500.0,0.00022191,3]
[329797462,1718677856031,-500.0,0.00022191,3]
[329797463,1718677856041,-507.7083938,0.00022191,3]
[329797464,1718677856050,-159.13,0.00022191,3]
[329797465,1718677856061,-780.52,0.00022191,3]
[329797466,1718677856070,-500.0,0.00022191,3]
[329797467,1718677856079,-519.66502296,0.00022191,3]
[329797468,1718677856089,-500.0,0.00022191,3]
[329797469,1718677856098,-540.16807799,0.00022191,3]
[329797470,1718677856108,-302.01,0.00022191,3]
[329797471,1718677856117,-503.67561443,0.00022191,3]
[329797472,1718677856127,-500.0,0.00022191,3]
[329797473,1718677856136,-500.0,0.00022191,3]
[329797474,1718677856146,-500.0,0.00022191,3]
[329797475,1718677856157,-500.0,0.00022191,3]
[329797476,1718677856166,-319.35755873,0.00022191,3]
[329797477,1718677856176,-500.0,0.00022191,3]
[329797478,1718677856189,-501.21615892,0.00022191,3]
[329797479,1718677856199,-882.74,0.00022191,3]
[329797480,1718677856208,-667.77,0.00022191,3]
[329797481,1718677856218,-500.0,0.00022191,3]
[329797482,1718677856228,-500.0,0.00022191,3]
[329797483,1718677856238,-504.70666846,0.00022191,3]
[329797484,1718677856247,-500.0,0.00022191,2]
[329797485,1718677856257,-500.0,0.00022191,3]
[329797486,1718677856267,-500.0,0.00022191,3]
[329797487,1718677856277,-550.52694942,0.00022191,3]
[329797488,1718677856287,-500.0,0.00022191,3]
[329797489,1718677856296,-500.0,0.00022191,3]
[329797490,1718677856306,-522.73,0.00022191,3]
[329797491,1718677856316,-500.0,0.00022191,3]
[329797492,1718677856325,-500.0,0.00022191,3]
[329797493,1718677856335,-500.0,0.00022191,3]
[329797494,1718677856344,-500.0,0.00022191,3]
[329797495,1718677856354,-500.0,0.00022191,3]
[329797496,1718677856364,-500.0,0.00022191,3]
[329797497,1718677856373,-500.0,0.00022191,3]
[329797498,1718677856383,-500.0,0.00022191,3]
[329797499,1718677856392,-885.2,0.00022191,3]
[329797500,1718677856402,-500.0,0.00022191,3]
[329797501,1718677856411,-500.0,0.00022191,3]
[329797502,1718677856420,-502.594345,0.00022191,3]
[329797503,1718677856434,-502.0931187,0.00022191,3]
[329797504,1718677856443,-500.0,0.00022191,3]
[329797505,1718677856452,-500.0,0.00022191,3]
[329797506,1718677856461,-913.63,0.00022191,3]
[329797507,1718677856470,-641.7126943,0.00022191,3]
[329797508,1718677856479,-500.0,0.00022191,3]
[329797509,1718677856487,-509.89032991,0.00022191,3]
[329797510,1718677856496,-500.0,0.00022191,3]
[329797511,1718677856506,-500.0,0.00022191,3]
[329797512,1718677856515,-500.0,0.00022191,3]
[329797513,1718677856524,-500.0,0.00022191,3]
[329797514,1718677856534,-500.0,0.00022191,3]
[329797515,1718677856543,-500.0,0.00022191,3]
[329797516,1718677856553,-253.89080065,0.00022191,2]
[329797517,1718677856562,-500.0,0.00022191,3]
[329797518,1718677856572,-681.52,0.00022191,3]
[329797519,1718677856581,-500.0,0.00022191,3]
[329797520,1718677856591,-500.0,0.00022191,3]
[329797521,1718677856601,-524.34146602,0.00022191,3]
[329797522,1718677856611,-486.65,0.00022191,7]
[329797523,1718677856620,-500.0,0.00022191,3]
[329797524,1718677856629,-685.53,0.00022191,3]
[329797525,1718677856638,-500.0,0.00022191,3]
[329797526,1718677856647,-500.0,0.00022191,3]
[329797527,1718677856656,-500.0,0.00022191,3]
[329797528,1718677856665,-871.79,0.00022191,3]
[329797529,1718677856675,-620.02,0.00022191,3]
[329797530,1718677856689,-500.0,0.00022191,3]
[329797531,1718677856703,-835.86,0.00022191,3]
[329797532,1718677856714,-500.0,0.00022191,3]
[329797533,1718677856723,-500.0,0.00022191,3]
[329797534,1718677856732,-500.0,0.00022191,3]
[329797535,1718677856743,-1299.48,0.00022191,3]
[329797536,1718677856752,-500.0,0.00022191,3]
[329797537,1718677856762,-500.0,0.00022191,3]
[329797538,1718677856772,-500.0,0.00022191,3]
[329797539,1718677856781,-500.0,0.00022191,3]
[329797540,1718677856794,-500.0,0.00022191,3]
[329797541,1718677856804,-734.55,0.00022191,3]
[329797542,1718677856814,-802.37,0.00022191,3]
[329797543,1718677856824,-500.0,0.00022191,3]
[329797544,1718677856834,-500.0,0.00022191,3]
[329797545,1718677856844,-157.87,0.00022191,3]
[329797546,1718677856854,-500.0,0.00022191,3]
[329797547,1718677856864,-500.0,0.00022191,3]
[329797548,1718677856874,-500.0,0.00022191,3]
[329797549,1718677856885,-500.0,0.00022191,3]
[329797550,1718677856895,-387.52326425,0.00022191,3]
[329797551,1718677856905,-500.0,0.00022191,3]
[329797552,1718677856915,-688.29,0.00022191,3]
[329797553,1718677856924,-553.2485352,0.00022191,3]
[329797554,1718677856938,-500.0,0.00022191,3]
[329797555,1718677856947,-300.8851882,0.00022191,3]
[329797556,1718677856955,-721.09,0.00022191,3]
[329797557,1718677856964,-633.35,0.00022191,3]
[329797558,1718677856973,-500.0,0.00022191,3]
[329797559,1718677856982,-463.68259876,0.00022191,3]
[329797560,1718677856992,-500.0,0.00022191,3]
[329797561,1718677857002,-500.0,0.00022191,3]
[329797562,1718677857011,-500.0,0.00022191,3]
[329797563,1718677857021,-681.44,0.00022191,3]
[329797564,1718677857031,-500.0,0.00022191,3]
[329797565,1718677857041,-500.0,0.00022191,3]
[329797566,1718677857050,-500.0,0.00022191,3]
[329797567,1718677857059,-500.0,0.00022191,3]
[329797568,1718677857069,-500.0,0.00022191,3]
[329797569,1718677857078,-1275.29,0.00022191,3]
[329797570,1718677857087,-500.0,0.00022191,3]
[329797571,1718677857097,-523.07,0.00022191,3]
[329797572,1718677857106,-500.0,0.00022191,3]
[329797573,1718677857115,-500.0,0.00022191,3]
[329797574,1718677857126,-858.13,0.00022191,3]
[329797575,1718677857136,-500.0,0.00022191,3]
[329797576,1718677857146,-500.0,0.00022191,3]
[329797577,1718677857156,-500.0,0.00022191,3]
[329797578,1718677857165,-500.0,0.00022191,3]
[329797579,1718677857175,-500.0,0.00022191,3]
[329797580,1718677857188,-500.0,0.00022191,3]
[329797581,1718677857197,-500.0,0.00022191,3]
[329797582,1718677857206,-500.0,0.00022191,3]
[329797583,1718677857215,-500.0,0.00022191,3]
[329797584,1718677857223,-760.91,0.00022191,3]
[329797585,1718677857232,-538.47,0.00022191,3]
[329797586,1718677857242,-500.0,0.00022191,3]
[329797587,1718677857252,-20000.0,0.00022191,2]
[329797588,1718677857262,-655.41,0.00022191,3]
[329797589,1718677857271,-517.61,0.00022191,3]
[329797590,1718677857281,-500.0,0.00022191,3]
[329797591,1718677857290,-500.0,0.00022191,3]
[329797592,1718677857300,-500.0,0.00022191,3]
[329797593,1718677857309,-515.01,0.00022191,3]
[329797594,1718677857319,-500.0,0.00022191,3]
[329797595,1718677857328,-500.0,0.00022191,3]
[329797596,1718677857338,-664.41,0.00022191,3]
[329797597,1718677857347,-500.0,0.00022191,3]
[329797598,1718677857357,-846.13,0.00022191,3]
[329797599,1718677857366,-500.0,0.00022191,3]
[329797600,1718677857376,-633.6,0.00022191,3]
[329797601,1718677857385,-500.0,0.00022191,3]
[329797602,1718677857395,-973.53,0.00022191,3]
[329797603,1718677857404,-500.0,0.00022191,3]
[329797604,1718677857414,-782.82,0.00022191,3]
[329797605,1718677857423,-591.77,0.00022191,3]
[329797606,1718677857437,-511.205269,0.00022191,3]
[329797607,1718677857446,-569.75,0.00022191,3]
[329797608,1718677857455,-550.88,0.00022191,3]
[329797609,1718677857464,-586.29,0.00022191,3]
[329797610,1718677857473,-1282.31,0.00022191,3]
[329797611,1718677857482,-500.0,0.00022191,3]
[329797612,1718677857492,-500.0,0.00022191,3]
[329797613,1718677857501,-737.35,0.00022191,3]
[329797614,1718677857511,-500.0,0.00022191,3]
[329797615,1718677857522,-500.0,0.00022191,3]
[329797616,1718677857531,-500.0,0.00022191,3]
[329797617,1718677857541,-500.0,0.00022191,3]
[329797618,1718677857550,-845.62,0.00022191,3]
[329797619,1718677857559,-500.0,0.00022191,3]
[329797620,1718677857569,-617.1,0.00022191,3]
[329797621,1718677857578,-621.82,0.00022191,3]
[329797622,1718677857588,-337.74306852,0.00022191,3]
[329797623,1718677857597,-542.21753683,0.00022191,3]
[329797624,1718677857606,-500.0,0.00022191,3]
[329797625,1718677857616,-957.17,0.00022191,3]
[329797626,1718677857625,-603.53,0.00022191,3]
[329797627,1718677857635,-500.0,0.00022191,3]
[329797628,1718677857645,-500.0,0.00022191,3]
[329797629,1718677857654,-500.0,0.00022191,3]
[329797630,1718677857664,-500.0,0.00022191,3]
[329797631,1718677857673,-500.0,0.00022191,3]
[329797632,1718677857686,-511.38796714,0.00022191,3]
[329797633,1718677857696,-1133.26,0.00022191,3]
[329797634,1718677857710,-500.0,0.00022191,3]
[329797635,1718677857720,-1007.56,0.00022191,3]
[329797636,1718677857729,-500.0,0.00022191,3]
[329797637,1718677857739,-500.0,0.00022191,3]
[329797638,1718677857749,-512.25,0.00022191,3]
[329797639,1718677857759,-568.49,0.00022191,3]
[329797640,1718677857768,-516.98,0.00022191,3]
[329797641,1718677857777,-500.0,0.00022191,3]
[329797642,1718677857787,-500.0,0.00022191,3]
[329797643,1718677857798,-500.0,0.00022191,3]
[329797644,1718677857807,-500.0,0.00022191,3]
[329797645,1718677857816,-541.88,0.00022191,3]
[329797646,1718677857825,-500.0,0.00022191,3]
[329797647,1718677857835,-500.0,0.00022191,3]
[329797648,1718677857844,-500.0,0.00022191,3]
[329797649,1718677857854,-791.85,0.00022191,3]
[329797650,1718677857863,-500.0,0.00022191,3]
[329797651,1718677857872,-889.28,0.00022191,3]
[329797652,1718677857882,-500.0,0.00022191,3]
[329797653,1718677857891,-227.89063049,0.00022191,3]
[329797654,1718677857901,-500.0,0.00022191,3]
[329797655,1718677857910,-792.89,0.00022191,3]
[329797656,1718677857919,-738.93,0.00022191,3]
[329797657,1718677857930,-529.19318715,0.00022191,3]
[329797658,1718677857940,-500.0,0.00022191,3]
[329797659,1718677857949,-671.18,0.00022191,3]
[329797660,1718677857959,-500.0,0.00022191,3]
[329797661,1718677857969,-823.64,0.00022191,3]
[329797662,1718677857978,-500.0,0.00022191,3]
[329797663,1718677857988,-500.0,0.00022191,3]
[329797664,1718677857997,-500.0,0.00022191,3]
[329797665,1718677858007,-500.0,0.00022191,3]
[329797666,1718677858017,-500.0,0.00022191,3]
[329797667,1718677858026,-1037.51,0.00022191,3]
[329797668,1718677858036,-996.78,0.00022191,3]
[329797669,1718677858045,-500.0,0.00022191,3]
[329797670,1718677858055,-500.0,0.00022191,3]
[329797671,1718677858064,-500.0,0.00022191,3]
[329797672,1718677858073,-500.0,0.00022191,3]
[329797673,1718677858083,-1217.8,0.00022191,3]
[329797674,1718677858093,-510.22299803,0.00022191,3]
[329797675,1718677858102,-637.27,0.00022191,3]
[329797676,1718677858112,-496.22280442,0.00022191,3]
[329797677,1718677858121,-500.0,0.00022191,3]
[329797678,1718677858131,-648.19,0.00022191,3]
[329797679,1718677858141,-502.03779133,0.00022191,3]
[329797680,1718677858150,-500.0,0.00022191,3]
[329797681,1718677858159,-500.0,0.00022191,3]
[329797682,1718677858169,-2006.71,0.00022191,3]
[329797683,1718677858181,-500.0,0.00022191,3]
[329797684,1718677858190,-500.0,0.00022191,3]
[329797685,1718677858201,-274.69,0.00022191,3]
[329797686,1718677858210,-500.0,0.00022191,3]
[329797687,1718677858219,-500.0,0.00022191,3]
[329797688,1718677858229,-842.7,0.00022191,3]
[329797689,1718677858238,-570.12,0.00022191,3]
[329797690,1718677858248,-500.0,0.00022191,3]
[329797691,1718677858257,-529.6,0.00022191,3]
[329797692,1718677858267,-538.82370871,0.00022191,3]
[329797693,1718677858276,-534.73468806,0.00022191,3]
[329797694,1718677858286,-500.0,0.00022191,3]
[329797695,1718677858295,-875.22,0.00022191,3]
[329797696,1718677858305,-545.23432612,0.00022191,3]
[329797697,1718677858315,-500.0,0.00022191,3]
[329797698,1718677858324,-500.0,0.00022191,3]
[329797699,1718677858334,-500.0,0.00022191,3]
[329797700,1718677858343,-500.0,0.00022191,3]
[329797701,1718677858353,-1085.16,0.00022191,3]
[329797702,1718677858363,-500.0,0.00022191,3]
[329797703,1718677858372,-500.0,0.00022191,3]
[329797704,1718677858381,-1011.25,0.00022191,3]
[329797705,1718677858390,-500.0,0.00022191,3]
[329797706,1718677858400,-500.0,0.00022191,3]
[329797707,1718677858409,-500.0,0.00022191,3]
[329797708,1718677858419,-500.0,0.00022191,3]
[329797709,1718677858430,-513.15386032,0.00022191,3]
[329797710,1718677858440,-1051.16,0.00022191,3]
[329797711,1718677858449,-500.0,0.00022191,3]
[329797712,1718677858459,-634.60107982,0.00022191,3]
[329797713,1718677858468,-500.0,0.00022191,3]
[329797714,1718677858477,-516.42,0.00022191,3]
[329797715,1718677858486,-500.0,0.00022191,3]
[329797716,1718677858495,-707.83,0.00022191,3]
[329797717,1718677858504,-500.0,0.00022191,3]
[329797718,1718677858514,-500.0,0.00022191,3]
[329797719,1718677858523,-500.0,0.00022191,3]
[329797720,1718677858533,-1007.78,0.00022191,3]
[329797721,1718677858542,-755.84,0.00022191,3]
[329797722,1718677858552,-500.0,0.00022191,3]
[329797723,1718677858561,-150.0,0.00022191,3]
[329797724,1718677858571,-500.0,0.00022191,3]
[329797725,1718677858580,-504.46,0.00022191,3]
[329797726,1718677858590,-500.0,0.00022191,3]
[329797727,1718677858599,-500.0,0.00022191,3]
[329797728,1718677858610,-985.29,0.00022191,3]
[329797729,1718677858619,-500.0,0.00022191,3]
[329797730,1718677858628,-500.0,0.00022191,3]
[329797731,1718677858639,-573.52,0.00022191,3]
[329797732,1718677858649,-511.18,0.00022191,3]
[329797733,1718677858659,-500.0,0.00022191,3]
[329797734,1718677858668,-810.72,0.00022191,3]
[329797735,1718677858681,-500.0,0.00022191,3]
[329797736,1718677858690,-500.0,0.00022191,3]
[329797737,1718677858700,-622.16,0.00022191,3]
[329797738,1718677858710,-500.0,0.00022191,3]
[329797739,1718677858723,-500.0,0.00022191,3]
[329797740,1718677858733,-1080.34,0.00022191,3]
[329797741,1718677858743,-511.13,0.00022191,3]
[329797742,1718677858752,-500.0,0.00022191,3]
[329797743,1718677858761,-500.0,0.00022191,3]
[329797744,1718677858771,-500.0,0.00022191,3]
[329797745,1718677858780,-651.97,0.00022191,3]
[329797746,1718677858792,-723.65,0.00022191,3]
[329797747,1718677858802,-500.0,0.00022191,3]
[329797748,1718677858811,-500.0,0.00022191,3]
[329797749,1718677858821,-510.79812931,0.00022191,3]
[329797750,1718677858830,-500.0,0.00022191,3]
[329797751,1718677858840,-500.0,0.00022191,3]
[329797752,1718677858849,-647.97,0.00022191,3]
[329797753,1718677858859,-696.46,0.00022191,3]
[329797754,1718677858868,-1041.47,0.00022191,3]
[329797755,1718677858878,-500.0,0.00022191,3]
[329797756,1718677858887,-500.0,0.00022191,3]
[329797757,1718677858897,-697.81,0.00022191,3]
[329797758,1718677858907,-500.0,0.00022191,3]
[329797759,1718677859088,-500.0,0.00022191,3]
[329797760,1718677859099,-289.13806584,0.00022191,3]
[329797761,1718677859108,-500.0,0.00022191,3]
[329797762,1718677859118,-540.29854025,0.00022191,3]
[329797763,1718677859128,-500.0,0.00022191,3]
[329797764,1718677859138,-627.27,0.00022191,3]
[329797765,1718677859148,-1871.79,0.00022191,3]
[329797766,1718677859158,-500.0,0.00022191,3]
[329797767,1718677859167,-500.0,0.00022191,3]
[329797768,1718677859178,-595.2,0.00022191,3]
[329797769,1718677859195,-500.0,0.00022191,3]
[329797770,1718677859205,-500.0,0.00022191,3]
[329797771,1718677859215,-537.85,0.00022191,3]
[329797772,1718677859224,-546.40195051,0.00022191,3]
[329797773,1718677859234,-500.0,0.00022191,3]
[329797774,1718677859243,-500.0,0.00022191,3]
[329797775,1718677859253,-599.84,0.00022191,3]
[329797776,1718677859262,-4460.79,0.00022191,3]
[329797777,1718677859272,-1486.87,0.00022191,3]
[329797778,1718677859282,-500.0,0.00022191,3]
[329797779,1718677859292,-500.0,0.00022191,3]
[329797780,1718677859302,-500.0,0.00022191,3]
[329797781,1718677859312,-793.77,0.00022191,3]
[329797782,1718677859322,-798.3,0.00022191,3]
[329797783,1718677859331,-500.0,0.00022191,3]
[329797784,1718677859341,-500.0,0.00022191,3]
[329797785,1718677859351,-28737.01,0.00022191,3]
[329797786,1718677859361,-1099.97,0.00022191,3]
[329797787,1718677859370,-551.69,0.00022191,3]
[329797788,1718677859380,-610.35,0.00022191,3]
[329797789,1718677859389,-4010.57,0.00022191,3]
[329797790,1718677859399,-694.38,0.00022191,3]
[329797791,1718677859408,-2778.67,0.00022191,3]
[329797792,1718677859418,-500.0,0.00022191,3]
[329797793,1718677859429,-956.25,0.00022191,3]
[329797794,1718677859442,-500.0,0.00022191,3]
[329797795,1718677859451,-500.0,0.00022191,3]
[329797796,1718677859460,-609.4,0.00022191,3]
[329797797,1718677859471,-705.39,0.00022191,3]
[329797798,1718677859480,-500.0,0.00022191,3]
[329797799,1718677859490,-638.75,0.00022191,3]
[329797800,1718677859499,-500.0,0.00022191,3]
[329797801,1718677859508,-11462.84,0.00022191,3]
[329797802,1718677859518,-5462.41,0.00022191,3]
[329797803,1718677859527,-572.1,0.00022191,3]
[329797804,1718677859537,-871.84,0.00022191,3]
[329797805,1718677859546,-500.0,0.00022191,3]
[329797806,1718677859556,-23468.99,0.00022191,3]
[329797807,1718677859565,-500.0,0.00022191,3]
[329797808,1718677859575,-500.0,0.00022191,3]
[329797809,1718677859584,-973.04,0.00022191,3]
[329797810,1718677859594,-500.0,0.00022191,3]
[329797811,1718677859604,-500.0,0.00022191,3]
[329797812,1718677859614,-500.0,0.00022191,3]
[329797813,1718677859623,-1456.0709729,0.00022191,3]
[329797814,1718677860089,-722.17121108,0.00022191,3]
[329797815,1718677860717,-442.0,0.00019893,2]
[329797816,1718677860727,-155.0,0.00021916,2]
[329797817,1718677860736,-364.95081979,0.00021916,2]
[329797818,1718677860746,-500.0,0.00021917,2]
[329797819,1718677860756,-500.0,0.00021917,2]
[329797820,1718677860765,-500.0,0.00021917,2]
[329797821,1718677860775,-500.0,0.00021917,2]
[329797822,1718677860785,-572.93790169,0.00021917,2]
[329797823,1718677860799,-1198.33781602,0.00022191,3]
[329797824,1718677860808,-500.0,0.00022191,3]
[329797825,1718677860817,-500.0,0.00022191,3]
[329797826,1718677860826,-500.0,0.00022191,3]
[329797827,1718677860835,-500.0,0.00022191,3]
[329797828,1718677860844,-400.80237996,0.00022191,3]
[329797829,1718677860856,-375.93228978,0.00022191,3]
[329797830,1718677860902,-983.86902031,0.00022191,3]
[329797831,1718677860914,-719.07993436,0.00022191,3]
[329797832,1718677860925,-585.22668101,0.00022191,3]
[329797833,1718677860940,-692.05969458,0.00022191,3]
[329797834,1718677860950,-30.10574708,0.00022191,3]
[329797835,1718677860961,-2055.95637963,0.00022191,3]
[329797836,1718677860972,-1232.59825842,0.00022191,3]
[329797837,1718677861327,-787.671,0.00019893,2]
[329797838,1718677861337,-212.3428782,0.00021915,2]
[329797839,1718677861349,-75.66683704,0.00021915,2]
[329797840,1718677861358,-699.49452596,0.00022191,3]
[329797847,1718678024344,123591.84845651,0.00014,2]
[329797848,1718678024381,76446.0,0.00014,2]
[329797849,1718678024413,41657.0778397,0.00014,2]
[329797850,1718678045633,32803.553723,0.000118,2]
[329797851,1718678072133,13750.11803924,6.94e-05,2]
[329797852,1718678088215,155.0,6.94e-05,2]
[329797853,1718678092695,290.17190073,6.94e-05,2]
[329797854,1718678106214,155.0,6.94e-05,2]
[329797855,1718678108734,291.13125295,6.94e-05,2]
[329797858,1718678128216,258.35575869,6.94e-05,2]
[329797859,1718678131501,117125.59148569,6.94e-05,2]
[329797860,1718678131528,45898.66091861,6.94e-05,2]
[329797861,1718678160998,5018.57044051,0.0001305,2]
[329797862,1718678199548,1212.08272902,0.00013,2]
[329797871,1718678403929,150.0,0.00013,2]
[329797872,1718678404124,150.0,0.00013,2]
[329797873,1718678404320,150.0,0.00013,2]
[329797875,1718678408359,150.0,0.00013,2]
[329797876,1718678408594,159.71547634,0.00013,2]
[329797877,1718678518444,9751.5013129,0.00022,30]
[329797926,1718679032866,-500.0,0.000147,5]
[329797928,1718679032876,-300.0,0.00014798,2]
[329797930,1718679032886,-10530.19719121,0.00014799,2]
[329797933,1718679032896,-1100.0,0.000148,5]
[329797937,1718679032906,-177.97550403,0.000149,2]
[329797939,1718679032915,-233.13670008,0.000149,2]
[329797941,1718679032927,-2072.22875972,0.000149,2]
[329797943,1718679032936,-178.36365557,0.000149,2]